fUST/lending_fUST_20250918
["ID","MTS","AMOUNT","RATE_DAILY","PERIOD"]
[386058960,1758205849631,-500.0,0.00023273,2]
[386058963,1758205849645,-500.0,0.00023273,2]
[386058965,1758205849659,-500.0,0.00023273,2]
[386058967,1758205849672,-500.0,0.00023273,2]
[386058969,1758205849685,-158.27848962,0.00023273,2]
[386058971,1758205849698,-500.0,0.00023273,2]
[386058973,1758205849711,-157.27798704,0.00023273,2]
[386058975,1758205849725,-500.0,0.00023273,2]
[386058978,1758205849738,-174.20037001,0.00023273,2]
[386058980,1758205849751,-500.0,0.00023273,2]
[386058982,1758205849764,-589.32518645,0.00023273,2]
[386058985,1758205849777,-500.0,0.00023273,2]
[386058987,1758205849791,-500.0,0.00023273,2]
[386058990,1758205849806,-500.0,0.00023273,2]
[386058992,1758205849819,-160.67374199,0.00023273,2]
[386058994,1758205849832,-500.0,0.00023273,2]
[386058996,1758205849845,-500.0,0.00023273,2]
[386058999,1758205849859,-500.0,0.00023273,2]
[386059001,1758205849873,-621.301862,0.00023273,2]
[386059004,1758205849887,-500.0,0.00023273,2]
[386059006,1758205849899,-500.0,0.00023273,2]
[386059008,1758205849913,-500.0,0.00023273,2]
[386059011,1758205849926,-500.0,0.00023273,2]
[386059013,1758205849939,-500.86890652,0.00023273,2]
[386059015,1758205849952,-500.0,0.00023273,2]
[386059018,1758205849967,-500.0,0.00023273,2]
[386059020,1758205849977,-500.0,0.00023273,2]
[386059022,1758205849987,-500.0,0.00023273,2]
[386059024,1758205849996,-500.0,0.00023273,2]
[386059035,1758205850110,-568.66094406,0.00023273,2]
[386059036,1758205850120,-500.0,0.00023273,2]
[386059037,1758205850129,-500.0,0.00023273,2]
[386059038,1758205850140,-500.0,0.00023273,2]
[386059039,1758205850149,-500.0,0.00023273,2]
[386059040,1758205850158,-500.0,0.00023273,2]
[386059041,1758205850168,-500.0,0.00023273,2]
[386059042,1758205850177,-500.0,0.00023273,2]
[386059043,1758205850186,-500.0,0.00023273,2]
[386059044,1758205850196,-500.81727454,0.00023273,2]
[386059045,1758205850206,-500.0,0.00023273,2]
[386059046,1758205850216,-160.28532058,0.00023273,2]
[386059047,1758205850226,-158.27528627,0.00023273,2]
[386059048,1758205850235,-156.30393271,0.00023273,2]
[386059049,1758205850245,-158.38050054,0.00023273,2]
[386059050,1758205850254,-500.0,0.00023273,2]
[386059051,1758205850264,-500.0,0.00023273,2]
[386059052,1758205850273,-500.0,0.00023273,2]
[386059053,1758205850283,-500.0,0.00023273,2]
[386059054,1758205850292,-500.0,0.00023273,2]
[386059055,1758205850302,-500.0,0.00023273,2]
[386059056,1758205850311,-500.0,0.00023273,2]
[386059057,1758205850321,-500.0,0.00023273,2]
[386059058,1758205850331,-500.0,0.00023273,2]
[386059059,1758205850341,-500.0,0.00023273,2]
[386059060,1758205850350,-480.0,0.00023287,2]
[386059061,1758205850360,-2603.43,0.000233,7]
[386059062,1758205850370,-500.0,0.00023344,3]
[386059063,1758205850380,-202.82577652,0.00023344,3]
[386059064,1758205850391,-151.4272161,0.00023344,3]
[386059065,1758205850400,-151.0,0.00023344,3]
[386059066,1758205850410,-151.0,0.00023344,3]
[386059067,1758205850420,-151.0,0.00023344,3]
[386059068,1758205850429,-151.0,0.00023344,3]
[386059069,1758205850439,-500.0,0.00023344,3]
[386059070,1758205850448,-151.43692654,0.00023344,3]
[386059071,1758205850458,-500.0,0.00023344,3]
[386059072,1758205850467,-151.0,0.00023344,3]
[386059073,1758205850476,-151.0,0.00023344,2]
[386059074,1758205850486,-151.0,0.00023344,3]
[386059075,1758205850495,-432.0,0.00023344,3]
[386059076,1758205850505,-151.2769351,0.00023344,3]
[386059077,1758205850514,-151.0,0.00023344,3]
[386059078,1758205850524,-151.0,0.00023344,3]
[386059079,1758205850533,-151.52473437,0.00023344,3]
[386059080,1758205850545,-151.0,0.00023344,3]
[386059081,1758205850555,-151.13221225,0.00023344,3]
[386059082,1758205850565,-230.17208461,0.00023344,3]
[386059083,1758205850574,-276.09904399,0.00023344,3]
[386059084,1758205850583,-151.29211184,0.00023344,3]
[386059085,1758205850592,-151.30050291,0.00023344,3]
[386059086,1758205850602,-151.41636184,0.00023344,3]
[386059087,1758205850611,-500.0,0.00023344,3]
[386059088,1758205850622,-151.0,0.00023344,2]
[386059089,1758205850631,-157.75316819,0.00023344,3]
[386059090,1758205850640,-157.82054604,0.00023344,2]
[386059091,1758205850650,-500.0,0.00023344,3]
[386059092,1758205850660,-500.0,0.00023344,3]
[386059093,1758205850670,-500.0,0.00023344,3]
[386059094,1758205850681,-151.0,0.00023344,3]
[386059095,1758205850690,-151.0,0.00023344,3]
[386059096,1758205850698,-160.0,0.00023345,2]
[386059097,1758205850708,-233.39271932,0.00023345,2]
[386059098,1758205850717,-480.0,0.00023373,2]
[386059099,1758205850726,-500.0,0.00023373,2]
[386059100,1758205850735,-504.42126826,0.00023373,2]
[386059101,1758205850744,-289.174,0.00023379,3]
[386059102,1758205850753,-606.44019871,0.00023398,2]
[386059103,1758205850762,-574.77986137,0.00023398,2]
[386059104,1758205850772,-152.62706778,0.00023398,2]
[386059105,1758205850781,-341.54538786,0.00023398,2]
[386059106,1758205850790,-480.0,0.00023417,3]
[386059107,1758205850799,-480.0,0.00023417,3]
[386059108,1758205850809,-480.0,0.00023417,3]
[386059109,1758205850818,-480.0,0.00023417,3]
[386059110,1758205850827,-480.0,0.00023417,3]
[386059111,1758205850837,-480.0,0.00023417,3]
[386059112,1758205850847,-480.0,0.00023417,3]
[386059113,1758205850856,-480.0,0.00023417,3]
[386059114,1758205850865,-480.0,0.00023417,3]
[386059115,1758205850875,-480.0,0.00023417,3]
[386059116,1758205850884,-480.0,0.00023417,3]
[386059117,1758205850893,-480.0,0.00023417,3]
[386059118,1758205850903,-480.0,0.00023417,3]
[386059119,1758205850912,-480.0,0.00023417,3]
[386059120,1758205850921,-480.0,0.00023417,3]
[386059121,1758205850932,-480.0,0.00023417,3]
[386059122,1758205850941,-480.0,0.00023417,3]
[386059123,1758205850950,-480.0,0.00023417,3]
[386059124,1758205850960,-497.33598049,0.00023418,3]
[386059125,1758205850970,-480.0,0.00023418,3]
[386059126,1758205850979,-480.0,0.00023418,3]
[386059127,1758205850988,-482.57988311,0.00023418,3]
[386059128,1758205850998,-480.0,0.00023418,3]
[386059129,1758205851007,-480.0,0.00023418,3]
[386059130,1758205851017,-480.0,0.00023418,3]
[386059131,1758205851026,-480.0,0.00023418,3]
[386059132,1758205851036,-480.0,0.00023418,3]
[386059133,1758205851047,-480.0,0.00023418,2]
[386059134,1758205851059,-480.0,0.00023418,3]
[386059135,1758205851068,-480.0,0.00023418,3]
[386059136,1758205851078,-480.0,0.00023418,3]
[386059137,1758205851087,-480.0,0.00023418,3]
[386059138,1758205851096,-486.36012853,0.00023418,3]
[386059139,1758205851106,-480.0,0.00023418,3]
[386059140,1758205851115,-480.0,0.00023418,3]
[386059141,1758205851124,-480.0,0.00023418,3]
[386059142,1758205851134,-480.0,0.00023418,3]
[386059143,1758205851143,-480.0,0.00023418,3]
[386059144,1758205851153,-470.11041,0.00023418,3]
[386059145,1758205851162,-480.0,0.00023418,3]
[386059146,1758205851172,-480.0,0.00023418,3]
[386059147,1758205851181,-480.0,0.00023435,3]
[386059148,1758205851190,-480.0,0.00023435,3]
[386059149,1758205851200,-480.0,0.00023435,3]
[386059150,1758205851210,-480.0,0.00023435,2]
[386059151,1758205851221,-603.33,0.00023435,3]
[386059152,1758205851231,-480.0,0.00023435,3]
[386059153,1758205851240,-480.0,0.00023473,3]
[386059154,1758205851250,-775.2,0.00023473,3]
[386059155,1758205851259,-480.0,0.00023481,3]
[386059156,1758205851269,-480.0,0.00023481,3]
[386059157,1758205851278,-480.0,0.00023481,3]
[386059158,1758205851287,-480.0,0.00023481,3]
[386059159,1758205851301,-480.0,0.00023481,3]
[386059160,1758205851311,-480.0,0.00023481,3]
[386059161,1758205851320,-480.0,0.00023481,3]
[386059162,1758205851330,-480.0,0.00023481,3]
[386059163,1758205851340,-480.0,0.00023481,3]
[386059164,1758205851350,-480.0,0.00023481,3]
[386059165,1758205851360,-480.0,0.00023481,3]
[386059166,1758205851370,-480.0,0.00023481,3]
[386059167,1758205851379,-480.0,0.00023481,3]
[386059168,1758205851388,-480.0,0.00023481,3]
[386059169,1758205851398,-480.0,0.00023481,3]
[386059170,1758205851407,-480.0,0.00023481,3]
[386059171,1758205851417,-480.0,0.00023481,3]
[386059172,1758205851427,-480.0,0.00023481,3]
[386059173,1758205851436,-480.0,0.00023481,3]
[386059174,1758205851446,-151.0,0.000235,6]
[386059175,1758205851456,-278.09302301,0.00023516,3]
[386059176,1758205851465,-480.0,0.00023516,3]
[386059177,1758205851475,-480.0,0.00023516,3]
[386059178,1758205851484,-480.0,0.00023516,3]
[386059179,1758205851494,-487.08980025,0.00023516,3]
[386059180,1758205851503,-509.14282418,0.00023516,3]
[386059181,1758205851513,-480.0,0.00023516,3]
[386059182,1758205851522,-480.0,0.00023516,3]
[386059183,1758205851532,-480.0,0.00023516,3]
[386059184,1758205851542,-480.0,0.00023516,3]
[386059185,1758205851556,-480.0,0.00023516,3]
[386059186,1758205851565,-480.0,0.00023518,3]
[386059187,1758205851575,-480.0,0.00023518,3]
[386059188,1758205851584,-480.0,0.00023518,3]
[386059189,1758205851595,-480.0,0.00023518,3]
[386059190,1758205851604,-480.0,0.00023518,3]
[386059191,1758205851614,-480.0,0.00023518,3]
[386059192,1758205851624,-480.0,0.00023518,3]
[386059193,1758205851634,-480.0,0.00023518,3]
[386059194,1758205851643,-480.0,0.00023518,3]
[386059195,1758205851653,-480.0,0.00023518,3]
[386059196,1758205851662,-480.0,0.00023518,3]
[386059197,1758205851672,-480.0,0.00023518,3]
[386059198,1758205851681,-480.0,0.00023518,3]
[386059204,1758205851760,-480.0,0.00023518,3]
[386059206,1758205851770,-480.0,0.00023518,3]
[386059208,1758205851780,-480.0,0.00023518,3]
[386059210,1758205851789,-480.0,0.00023518,3]
[386059211,1758205851799,-480.0,0.00023518,3]
[386059214,1758205851808,-566.02095896,0.00023518,3]
[386059215,1758205851818,-480.0,0.00023518,3]
[386059217,1758205851827,-480.0,0.00023518,3]
[386059219,1758205851837,-480.0,0.00023518,3]
[386059221,1758205851846,-480.0,0.00023518,3]
[386059223,1758205851857,-480.0,0.00023518,3]
[386059225,1758205851866,-1570.16,0.00023518,3]
[386059227,1758205851876,-480.0,0.00023518,3]
[386059230,1758205851885,-192.05565565,0.00023518,3]
[386059232,1758205851895,-480.0,0.00023518,3]
[386059234,1758205851905,-480.0,0.00023518,3]
[386059236,1758205851914,-480.0,0.00023518,3]
[386059238,1758205851924,-480.0,0.00023518,3]
[386059240,1758205851933,-480.0,0.00023518,3]
[386059242,1758205851942,-480.0,0.00023518,3]
[386059243,1758205851952,-480.0,0.00023518,3]
[386059245,1758205851961,-822.79,0.00023518,3]
[386059247,1758205851971,-480.0,0.00023518,3]
[386059249,1758205851981,-2395.09,0.00023518,3]
[386059252,1758205851992,-480.0,0.00023518,3]
[386059254,1758205852001,-516.28,0.00023518,3]
[386059256,1758205852010,-480.0,0.00023518,3]
[386059257,1758205852020,-480.0,0.00023518,3]
[386059259,1758205852030,-500.0,0.00023518,3]
[386059262,1758205852040,-480.0,0.00023518,3]
[386059263,1758205852050,-1000.0,0.00023521,2]
[386059266,1758205852060,-1000.0,0.00023521,2]
[386059267,1758205852069,-500.76366316,0.00023521,2]
[386059270,1758205852079,-1000.0,0.00023521,2]
[386059271,1758205852088,-505.03690112,0.00023521,2]
[386059273,1758205852097,-1000.0,0.00023521,2]
[386059276,1758205852107,-1000.0,0.00023521,2]
[386059277,1758205852116,-1008.12528172,0.00023521,2]
[386059279,1758205852126,-995.9798274,0.00023521,2]
[386059281,1758205852135,-1000.0,0.00023521,2]
[386059283,1758205852145,-1000.0,0.00023521,2]
[386059285,1758205852154,-504.38097248,0.00023521,2]
[386059287,1758205852164,-500.0,0.00023521,2]
[386059289,1758205852173,-500.21332873,0.00023521,2]
[386059291,1758205852182,-500.0,0.00023521,2]
[386059293,1758205852191,-1000.0,0.00023521,2]
[386059295,1758205852201,-1000.0,0.00023521,2]
[386059297,1758205852210,-503.68549249,0.00023521,2]
[386059299,1758205852220,-1000.0,0.00023521,2]
[386059301,1758205852229,-500.65184826,0.00023521,2]
[386059303,1758205852239,-501.21536066,0.00023521,2]
[386059305,1758205852248,-1000.0,0.00023521,2]
[386059307,1758205852258,-1000.0,0.00023521,2]
[386059309,1758205852267,-1000.0,0.00023521,2]
[386059311,1758205852277,-1016.64076776,0.00023521,2]
[386059313,1758205852287,-1047.07638326,0.00023521,2]
[386059315,1758205852296,-504.12324222,0.00023521,2]
[386059317,1758205852306,-1000.0,0.00023521,2]
[386059319,1758205852315,-1000.0,0.00023521,2]
[386059321,1758205852324,-1000.0,0.00023521,2]
[386059323,1758205852334,-500.78328613,0.00023521,2]
[386059325,1758205852346,-1000.0,0.00023521,2]
[386059327,1758205852356,-173.03132166,0.00023521,2]
[386059329,1758205852365,-195.2719788,0.00023521,2]
[386059331,1758205852375,-1000.0,0.00023521,2]
[386059333,1758205852384,-480.0,0.00023537,3]
[386059335,1758205852394,-480.0,0.00023537,3]
[386059337,1758205852404,-480.0,0.00023537,3]
[386059339,1758205852413,-480.0,0.00023537,3]
[386059341,1758205852423,-480.0,0.00023537,3]
[386059343,1758205852432,-480.0,0.00023537,3]
[386059345,1758205852442,-480.0,0.00023537,3]
[386059347,1758205852451,-480.0,0.00023537,3]
[386059349,1758205852460,-480.0,0.00023537,3]
[386059351,1758205852470,-480.0,0.00023537,3]
[386059353,1758205852479,-225.68139786,0.00023537,3]
[386059355,1758205852489,-480.0,0.00023537,3]
[386059357,1758205852499,-480.0,0.00023537,3]
[386059359,1758205852508,-480.0,0.00023537,3]
[386059361,1758205852518,-480.0,0.00023537,3]
[386059363,1758205852528,-487.37284984,0.00023537,3]
[386059365,1758205852537,-480.0,0.00023537,3]
[386059367,1758205852551,-480.0,0.00023537,3]
[386059369,1758205852560,-487.10765605,0.00023537,3]
[386059371,1758205852570,-480.0,0.00023537,3]
[386059373,1758205852579,-480.0,0.00023537,3]
[386059375,1758205852589,-596.32,0.00023537,3]
[386059377,1758205852598,-576.05922797,0.00023537,3]
[386059379,1758205852608,-549.34903414,0.00023537,3]
[386059381,1758205852617,-480.0,0.00023537,3]
[386059383,1758205852626,-480.0,0.00023537,3]
[386059384,1758205852636,-480.0,0.00023537,3]
[386059387,1758205852648,-480.0,0.00023537,3]
[386059389,1758205852657,-483.15831072,0.00023537,3]
[386059391,1758205852666,-482.3761886,0.00023537,3]
[386059393,1758205852675,-480.0,0.00023537,3]
[386059394,1758205852685,-483.11570259,0.00023537,3]
[386059396,1758205852694,-480.0,0.00023537,3]
[386059398,1758205852704,-480.0,0.00023537,3]
[386059400,1758205852713,-484.21831293,0.00023537,3]
[386059403,1758205852722,-482.44981994,0.00023537,3]
[386059404,1758205852731,-481.90175458,0.00023537,3]
[386059406,1758205852740,-482.02317966,0.00023537,3]
[386059408,1758205852750,-480.0,0.00023537,3]
[386059410,1758205852759,-480.0,0.00023537,3]
[386059412,1758205852768,-482.76983589,0.00023537,3]
[386059414,1758205852777,-480.0,0.00023537,3]
[386059416,1758205852786,-620.84901325,0.00023537,3]
[386059418,1758205852796,-150.46577462,0.00023537,3]
[386059420,1758205852806,-551.28534161,0.00023537,3]
[386059422,1758205852815,-480.0,0.00023537,3]
[386059424,1758205852824,-480.0,0.00023537,3]
[386059426,1758205852833,-896.94,0.00023537,3]
[386059428,1758205852844,-452.48,0.00023537,3]
[386059430,1758205852854,-486.30101872,0.00023537,3]
[386059432,1758205852864,-472.80084475,0.00023537,3]
[386059434,1758205852873,-183.35644826,0.00023537,3]
[386059436,1758205852883,-480.0,0.00023537,3]
[386059438,1758205852892,-480.0,0.00023537,3]
[386059440,1758205852902,-480.0,0.00023537,3]
[386059442,1758205852911,-480.0,0.00023537,3]
[386059444,1758205852920,-480.0,0.00023537,3]
[386059446,1758205852930,-4706.26,0.00023537,3]
[386059448,1758205852939,-480.0,0.00023537,3]
[386059450,1758205852949,-606.31,0.00023537,3]
[386059452,1758205852958,-480.0,0.00023537,3]
[386059454,1758205852967,-480.0,0.00023537,3]
[386059456,1758205852977,-480.0,0.00023537,3]
[386059458,1758205852986,-480.0,0.00023537,3]
[386059460,1758205852996,-480.0,0.00023537,3]
[386059462,1758205853006,-480.0,0.00023537,3]
[386059464,1758205853015,-485.51446281,0.00023537,3]
[386059466,1758205853024,-480.0,0.00023537,3]
[386059468,1758205853033,-480.0,0.00023537,3]
[386059470,1758205853042,-480.0,0.00023537,3]
[386059472,1758205853053,-480.0,0.00023537,3]
[386059474,1758205853062,-480.0,0.00023537,3]
[386059476,1758205853071,-481.67100053,0.00023537,3]
[386059478,1758205853081,-480.0,0.00023537,3]
[386059480,1758205853090,-200.0,0.00023561,3]
[386059482,1758205853099,-201.92473136,0.00023561,3]
[386059484,1758205853109,-150.0,0.00023573,2]
[386059486,1758205853118,-150.06872729,0.00023573,2]
[386059488,1758205853128,-500.0,0.00023618,3]
[386059490,1758205853137,-196.29060258,0.00023618,3]
[386059492,1758205853150,-151.0,0.00023618,3]
[386059493,1758205853162,-151.0,0.00023618,3]
[386059495,1758205853172,-151.0,0.00023618,3]
[386059497,1758205853182,-500.0,0.00023618,3]
[386059499,1758205853191,-500.0,0.00023618,3]
[386059501,1758205853201,-151.0,0.00023618,3]
[386059503,1758205853210,-151.0,0.00023618,2]
[386059512,1758205853287,-151.0,0.00023618,3]
[386059514,1758205853298,-432.0,0.00023618,3]
[386059516,1758205853308,-151.0,0.00023618,3]
[386059518,1758205853317,-151.0,0.00023618,3]
[386059520,1758205853327,-151.0,0.00023618,3]
[386059522,1758205853336,-507.64689878,0.00023618,3]
[386059524,1758205853346,-500.0,0.00023618,3]
[386059526,1758205853355,-500.0,0.00023618,3]
[386059528,1758205853365,-151.0,0.00023618,3]
[386059530,1758205853375,-151.0,0.00023618,3]
[386059532,1758205853384,-866.66637084,0.00023647,2]
[386059533,1758205853394,-480.0,0.00023691,3]
[386059536,1758205853407,-480.0,0.00023691,3]
[386059537,1758205853416,-480.0,0.00023691,3]
[386059540,1758205853426,-480.0,0.00023691,3]
[386059542,1758205853435,-480.0,0.00023691,3]
[386059543,1758205853446,-480.0,0.00023691,3]
[386059545,1758205853455,-480.0,0.00023691,3]
[386059547,1758205853465,-480.0,0.00023691,3]
[386059549,1758205853474,-480.0,0.00023691,3]
[386059551,1758205853483,-480.0,0.00023691,3]
[386059553,1758205853492,-617.08634992,0.00023691,3]
[386059555,1758205853502,-480.0,0.00023691,3]
[386059557,1758205853511,-480.0,0.00023691,3]
[386059559,1758205853521,-480.0,0.00023691,3]
[386059561,1758205853531,-480.0,0.00023691,3]
[386059563,1758205853540,-480.0,0.00023691,3]
[386059565,1758205853553,-480.0,0.00023691,3]
[386059567,1758205853562,-480.0,0.00023692,3]
[386059569,1758205853571,-480.0,0.00023692,3]
[386059571,1758205853581,-368.41097937,0.00023692,3]
[386059573,1758205853591,-480.0,0.00023692,3]
[386059575,1758205853600,-480.0,0.00023692,2]
[386059577,1758205853610,-386.66878514,0.00023692,3]
[386059579,1758205853621,-626.44634946,0.00023692,3]
[386059581,1758205853630,-480.0,0.00023692,3]
[386059583,1758205853639,-480.0,0.00023692,3]
[386059585,1758205853648,-480.0,0.00023692,3]
[386059587,1758205853658,-480.0,0.00023692,3]
[386059589,1758205853667,-480.0,0.00023692,3]
[386059591,1758205853677,-151.69,0.00023692,3]
[386059593,1758205853687,-518.50481975,0.00023692,3]
[386059595,1758205853697,-480.0,0.00023692,3]
[386059597,1758205853706,-151.0,0.000237,5]
[386059598,1758205853715,-274.6,0.00023709,3]
[386059601,1758205853725,-480.0,0.00023709,3]
[386059602,1758205853734,-480.0,0.00023709,3]
[386059604,1758205853743,-480.0,0.00023709,2]
[386059607,1758205853753,-480.0,0.00023709,3]
[386059609,1758205853763,-480.0,0.00023747,3]
[386059611,1758205853772,-775.2,0.00023747,3]
[386059612,1758205853782,-480.0,0.00023755,3]
[386059614,1758205853792,-480.0,0.00023755,3]
[386059616,1758205853803,-480.0,0.00023755,3]
[386059619,1758205853813,-480.0,0.00023755,3]
[386059621,1758205853823,-480.0,0.00023755,3]
[386059622,1758205853834,-480.0,0.00023755,3]
[386059624,1758205853843,-480.0,0.00023755,3]
[386059626,1758205853853,-480.0,0.00023755,3]
[386059628,1758205853862,-480.0,0.00023755,3]
[386059630,1758205853871,-480.0,0.00023755,3]
[386059632,1758205853881,-480.0,0.00023755,3]
[386059634,1758205853891,-480.0,0.00023755,3]
[386059636,1758205853900,-480.0,0.00023755,3]
[386059638,1758205853909,-480.0,0.00023755,3]
[386059640,1758205853919,-480.0,0.00023755,3]
[386059642,1758205853928,-480.0,0.00023755,3]
[386059644,1758205853938,-480.0,0.00023755,3]
[386059646,1758205853947,-480.0,0.00023755,3]
[386059648,1758205853957,-480.0,0.0002379,3]
[386059650,1758205853966,-480.0,0.0002379,3]
[386059652,1758205853976,-480.0,0.0002379,3]
[386059654,1758205853986,-480.0,0.0002379,3]
[386059656,1758205853995,-480.0,0.0002379,3]
[386059658,1758205854004,-480.0,0.00023792,3]
[386059660,1758205854014,-480.0,0.00023792,3]
[386059662,1758205854024,-480.0,0.00023792,3]
[386059664,1758205854033,-480.0,0.00023792,3]
[386059666,1758205854042,-480.0,0.00023792,3]
[386059668,1758205854052,-480.0,0.00023792,3]
[386059670,1758205854061,-480.0,0.00023792,3]
[386059672,1758205854071,-480.0,0.00023792,3]
[386059674,1758205854081,-480.0,0.00023792,3]
[386059676,1758205854091,-480.0,0.00023792,3]
[386059678,1758205854100,-480.0,0.00023792,3]
[386059680,1758205854109,-480.0,0.00023792,3]
[386059682,1758205854119,-480.0,0.00023792,3]
[386059684,1758205854128,-480.0,0.00023792,3]
[386059686,1758205854137,-480.0,0.00023792,3]
[386059688,1758205854146,-480.0,0.00023792,3]
[386059690,1758205854156,-480.0,0.00023792,3]
[386059692,1758205854165,-480.0,0.00023792,3]
[386059694,1758205854175,-480.0,0.00023792,3]
[386059696,1758205854184,-480.0,0.00023792,3]
[386059698,1758205854193,-480.0,0.00023792,3]
[386059700,1758205854203,-480.0,0.00023792,3]
[386059701,1758205854212,-1570.16,0.00023792,3]
[386059703,1758205854222,-480.0,0.00023792,3]
[386059706,1758205854231,-480.0,0.00023792,3]
[386059707,1758205854248,-480.0,0.00023792,3]
[386059709,1758205854258,-480.0,0.00023792,3]
[386059712,1758205854268,-480.0,0.00023792,3]
[386059714,1758205854278,-480.0,0.00023792,3]
[386059716,1758205854287,-822.79,0.00023792,3]
[386059717,1758205854297,-480.0,0.00023792,3]
[386059719,1758205854306,-2395.09,0.00023792,3]
[386059721,1758205854315,-480.0,0.00023792,3]
[386059723,1758205854325,-480.0,0.00023792,3]
[386059725,1758205854335,-480.0,0.00023792,3]
[386059727,1758205854344,-480.0,0.00023792,3]
[386059729,1758205854353,-151.0,0.000238,9]
[386059731,1758205854362,-500.0,0.000238,2]
[386059733,1758205854373,-480.0,0.00023811,3]
[386059735,1758205854383,-480.0,0.00023811,3]
[386059737,1758205854393,-517.62433907,0.00023811,3]
[386059739,1758205854402,-505.32224837,0.00023811,3]
[386059741,1758205854412,-480.0,0.00023811,3]
[386059743,1758205854421,-480.0,0.00023811,3]
[386059745,1758205854431,-480.0,0.00023811,3]
[386059747,1758205854440,-480.0,0.00023811,3]
[386059749,1758205854450,-484.12401454,0.00023811,3]
[386059751,1758205854460,-480.0,0.00023811,3]
[386059753,1758205854470,-480.0,0.00023811,3]
[386059755,1758205854480,-480.0,0.00023811,3]
[386059757,1758205854490,-480.0,0.00023811,3]
[386059759,1758205854499,-480.0,0.00023811,3]
[386059761,1758205854510,-384.06,0.00023811,3]
[386059763,1758205854519,-480.0,0.00023811,3]
[386059765,1758205854528,-515.89988842,0.00023811,3]
[386059767,1758205854537,-485.9959105,0.00023811,3]
[386059769,1758205854549,-485.96826907,0.00023811,3]
[386059771,1758205854559,-480.0,0.00023811,3]
[386059773,1758205854568,-480.0,0.00023811,3]
[386059775,1758205854578,-480.0,0.00023811,3]
[386059777,1758205854587,-480.0,0.00023811,3]
[386059779,1758205854596,-896.94,0.00023811,3]
[386059781,1758205854605,-480.0,0.00023811,3]
[386059783,1758205854615,-480.0,0.00023811,3]
[386059785,1758205854624,-480.0,0.00023811,3]
[386059794,1758205854696,-480.0,0.00023811,3]
[386059796,1758205854706,-4706.26,0.00023811,3]
[386059798,1758205854715,-374.06570471,0.00023811,3]
[386059800,1758205854724,-606.31,0.00023811,3]
[386059802,1758205854733,-480.0,0.00023811,3]
[386059804,1758205854743,-480.0,0.00023811,3]
[386059806,1758205854753,-583.89,0.00023811,3]
[386059808,1758205854762,-480.0,0.00023811,3]
[386059810,1758205854772,-210.58720422,0.00023811,3]
[386059812,1758205854781,-480.0,0.00023811,3]
[386059814,1758205854790,-480.0,0.00023811,3]
[386059816,1758205854801,-480.0,0.00023811,3]
[386059818,1758205854810,-480.0,0.00023811,3]
[386059819,1758205854819,-1002.49020776,0.00023821,2]
[386059821,1758205854829,-1004.62007717,0.00023821,2]
[386059823,1758205854838,-1002.96357146,0.00023821,2]